fUST/lending_fUST_20251128
["ID","MTS","AMOUNT","RATE_DAILY","PERIOD"]
[394987788,1764264619783,301.1433787,0.0001001,3]
[394987807,1764264631961,-61.9879778,3.753e-05,2]
[394987808,1764264631970,-164.564164,3.897e-05,2]
[394987809,1764264631980,-300.0,4.472e-05,2]
[394987810,1764264631990,-300.0,4.472e-05,2]
[394987811,1764264631999,-461.52860639,4.473e-05,2]
[394987812,1764264632008,-500.0,4.473e-05,2]
[394987813,1764264632018,-500.0,4.473e-05,2]
[394987814,1764264632028,-500.0,4.473e-05,2]
[394987815,1764264632038,-500.0,4.473e-05,2]
[394987816,1764264632047,-500.0,4.473e-05,2]
[394987817,1764264632056,-500.0,4.473e-05,2]
[394987818,1764264632066,-500.0,4.473e-05,2]
[394987819,1764264632075,-500.0,4.473e-05,2]
[394987821,1764264632087,-500.0,4.473e-05,2]
[394987823,1764264632098,-500.0,4.473e-05,2]
[394987825,1764264632107,-418.18895891,4.473e-05,2]
[394987827,1764264632116,-518.39835129,4.473e-05,2]
[394987829,1764264632125,-500.0,4.473e-05,2]
[394987831,1764264632135,-392.72514848,4.473e-05,2]
[394987833,1764264632144,-500.0,4.473e-05,2]
[394987835,1764264632154,-500.0,4.473e-05,2]
[394987837,1764264632165,-500.0,4.473e-05,2]
[394987839,1764264632174,-500.0,4.473e-05,2]
[394987841,1764264632184,-500.0,4.473e-05,2]
[394987843,1764264632196,-500.0,4.473e-05,2]
[394987844,1764264632206,-500.0,4.473e-05,2]
[394987845,1764264632215,-500.0,4.473e-05,2]
[394987846,1764264632224,-500.0,4.473e-05,2]
[394987847,1764264632234,-55394.97180114,4.5e-05,2]
[394987882,1764264637950,-196802.56302189,4.5e-05,2]
[394987887,1764264640074,-1833.34169242,4.5e-05,2]
[394987888,1764264640117,-604.2168,4.5e-05,2]
[394987986,1764264646217,-5526.96333107,4.455e-05,2]
[394987988,1764264646227,-9613.38392688,4.5e-05,2]
[394987992,1764264646475,-19405.39892497,4.5e-05,2]
[394987993,1764264880217,1000.0,4.568e-05,3]
[394987994,1764264913198,209.40437684,0.0001001,3]
[394987995,1764264913805,217.15233878,0.0001001,3]
[394987996,1764264914409,225.18697532,0.0001001,3]
[394987997,1764264915014,233.51889341,0.0001001,3]
[394987998,1764264915649,242.15909246,0.0001001,3]
[394987999,1764264916371,251.11897888,0.0001001,3]
[394988000,1764264916870,260.4103811,0.0001001,3]
[394988001,1764264917525,270.0455652,0.0001001,3]
[394988002,1764264918097,280.03725112,0.0001001,3]
[394988003,1764264918794,290.39862941,0.0001001,3]
[394988004,1764264919334,301.1433787,0.0001001,3]
[394988007,1764265226014,209.40437684,0.0001001,3]
[394988008,1764265226600,217.15233878,0.0001001,3]
[394988009,1764265227212,225.18697532,0.0001001,3]
[394988010,1764265227845,233.51889341,0.0001001,3]
[394988011,1764265228470,242.15909246,0.0001001,3]
[394988012,1764265229077,251.11897888,0.0001001,3]
[394988013,1764265229685,260.4103811,0.0001001,3]
[394988014,1764265230301,270.0455652,0.0001001,3]
[394988015,1764265230932,280.03725112,0.0001001,3]
[394988016,1764265231739,290.39862941,0.0001001,3]
[394988017,1764265232345,301.1433787,0.0001001,3]
[394988018,1764265524096,209.40437684,0.0001001,3]
[394988019,1764265524704,217.15233878,0.0001001,3]
[394988020,1764265525329,225.18697532,0.0001001,3]
[394988021,1764265525974,233.51889341,0.0001001,3]
[394988022,1764265526578,242.15909246,0.0001001,3]
[394988023,1764265527190,251.11897888,0.0001001,3]
[394988024,1764265527772,260.4103811,0.0001001,3]
[394988025,1764265528377,270.0455652,0.0001001,3]
[394988026,1764265528980,280.03725112,0.0001001,3]
[394988027,1764265529594,290.39862941,0.0001001,3]
[394988028,1764265530230,301.1433787,0.0001001,3]
[394988035,1764265818422,209.40437684,0.0001001,3]
[394988036,1764265819205,217.15233878,0.0001001,3]
[394988037,1764265819834,225.18697532,0.0001001,3]
[394988038,1764265820485,233.51889341,0.0001001,3]
[394988039,1764265821089,242.15909246,0.0001001,3]
[394988040,1764265821723,251.11897888,0.0001001,3]
[394988041,1764265822334,260.4103811,0.0001001,3]
[394988042,1764265822959,270.0455652,0.0001001,3]
[394988043,1764265823592,280.03725112,0.0001001,3]
[394988044,1764265824206,290.39862941,0.0001001,3]
[394988045,1764265824816,301.1433787,0.0001001,3]
[394988068,1764265832112,-661.6,4.201e-05,2]
[394988223,1764265838169,-541.09,4.201e-05,2]
[394988228,1764265838218,-1192.38614843,4.201e-05,2]
[394988231,1764265838229,-1501.08898084,4.201e-05,2]
[394988233,1764265838241,-1417.25,4.201e-05,2]
[394988236,1764265838272,-3284.29165041,4.201e-05,2]
[394988237,1764265838282,-150.0,4.265e-05,2]
[394988238,1764265838291,-633.0,4.372e-05,2]
[394988239,1764265838301,-289.0,4.372e-05,2]
[394988240,1764265838311,-300.0,4.372e-05,2]
[394988241,1764265838320,-500.0,4.373e-05,2]
[394988242,1764265838329,-500.0,4.373e-05,2]
[394988243,1764265838338,-161.1740351,4.373e-05,2]
[394988244,1764265838348,-500.0,4.373e-05,2]
[394988245,1764265838358,-500.0,4.373e-05,2]
[394988246,1764265838367,-500.0,4.373e-05,2]
[394988247,1764265838377,-500.0,4.373e-05,2]
[394988248,1764265838386,-500.0,4.373e-05,2]
[394988249,1764265838396,-500.0,4.373e-05,2]
[394988250,1764265838409,-500.0,4.373e-05,2]
[394988251,1764265838422,-500.0,4.373e-05,2]
[394988252,1764265838432,-500.0,4.373e-05,2]
[394988253,1764265838441,-496.35169671,4.373e-05,2]
[394988254,1764265838451,-500.0,4.373e-05,2]
[394988255,1764265838461,-500.0,4.373e-05,2]
[394988256,1764265838470,-500.0,4.373e-05,2]
[394988257,1764265838480,-500.0,4.373e-05,2]
[394988258,1764265838489,-500.0,4.373e-05,2]
[394988259,1764265838498,-500.0,4.373e-05,2]
[394988260,1764265838508,-500.0,4.373e-05,2]
[394988261,1764265838518,-500.0,4.373e-05,2]
[394988262,1764265838527,-500.0,4.373e-05,2]
[394988263,1764265838536,-500.0,4.373e-05,2]
[394988264,1764265838546,-500.0,4.373e-05,2]
[394988265,1764265838555,-500.0,4.373e-05,2]
[394988266,1764265838564,-500.0,4.373e-05,2]
[394988267,1764265838574,-500.0,4.373e-05,2]
[394988268,1764265838583,-500.0,4.373e-05,2]
[394988269,1764265838592,-3082.46693219,4.4e-05,2]
[394988272,1764265840682,-3001.14898043,4.4e-05,2]
[394988273,1764265840693,-4231.89251024,4.4e-05,2]
[394988274,1764265840704,-2117.88535503,4.4e-05,2]
[394988275,1764265840715,-1085.31156499,4.4e-05,2]
[394988276,1764265840730,-1227.21692308,4.4e-05,2]
[394988291,1764265844451,-9482.55617775,4.4e-05,2]
[394988293,1764265845188,-550.7002715,4.356e-05,2]
[394988294,1764265845197,-1096.41902623,4.4e-05,2]
[394988300,1764265846328,-162062.83487854,4.4e-05,2]
[394988301,1764265846460,-7657.58372646,4.4e-05,2]
[394988302,1764265846470,-333.0,4.4e-05,2]
[394988305,1764266119155,209.40437684,0.0001001,3]
[394988306,1764266119773,217.15233878,0.0001001,3]
[394988307,1764266120396,225.18697532,0.0001001,3]
[394988308,1764266122289,233.51889341,0.0001001,3]
[394988309,1764266122468,242.15909246,0.0001001,3]
[394988310,1764266122695,251.11897888,0.0001001,3]
[394988311,1764266123310,260.4103811,0.0001001,3]
[394988312,1764266124094,270.0455652,0.0001001,3]
[394988313,1764266124719,280.03725112,0.0001001,3]
[394988314,1764266125335,290.39862941,0.0001001,3]
[394988315,1764266125961,301.1433787,0.0001001,3]
[394988319,1764266427204,209.40437684,0.0001001,3]
[394988320,1764266427804,217.15233878,0.0001001,3]
[394988321,1764266428402,225.18697532,0.0001001,3]
[394988322,1764266429034,233.51889341,0.0001001,3]
[394988323,1764266429694,242.15909246,0.0001001,3]
[394988324,1764266430241,251.11897888,0.0001001,3]
[394988325,1764266430880,260.4103811,0.0001001,3]
[394988326,1764266431449,270.0455652,0.0001001,3]
[394988327,1764266432057,280.03725112,0.0001001,3]
[394988328,1764266432806,290.39862941,0.0001001,3]
[394988329,1764266433435,301.1433787,0.0001001,3]
[394988330,1764266722223,209.40437684,0.0001001,3]
[394988331,1764266723358,217.15233878,0.0001001,3]
[394988332,1764266724005,225.18697532,0.0001001,3]
[394988333,1764266724630,233.51889341,0.0001001,3]
[394988334,1764266725250,242.15909246,0.0001001,3]
[394988335,1764266725920,251.11897888,0.0001001,3]
[394988336,1764266726450,260.4103811,0.0001001,3]
[394988337,1764266727122,270.0455652,0.0001001,3]
[394988338,1764266727698,280.03725112,0.0001001,3]
[394988339,1764266729598,290.39862941,0.0001001,3]
[394988340,1764266730197,301.1433787,0.0001001,3]
[394988341,1764267012690,209.40437684,0.0001001,3]
[394988342,1764267013299,217.15233878,0.0001001,3]
[394988343,1764267013921,225.18697532,0.0001001,3]
[394988344,1764267014532,233.51889341,0.0001001,3]
[394988345,1764267015160,242.15909246,0.0001001,3]
[394988346,1764267016232,251.11897888,0.0001001,3]
[394988347,1764267016649,260.4103811,0.0001001,3]
[394988348,1764267017066,270.0455652,0.0001001,3]
[394988349,1764267017669,280.03725112,0.0001001,3]
[394988350,1764267018287,290.39862941,0.0001001,3]
[394988351,1764267018917,301.1433787,0.0001001,3]
[394988380,1764267032231,-253.08130421,4.299e-05,2]
[394988503,1764267038286,-46.91869579,4.299e-05,2]
[394988506,1764267038296,-150.0,4.299e-05,2]
[394988508,1764267038306,-1180.77063121,4.3e-05,2]
[394988603,1764267045395,-3819.14115196,4.3e-05,2]
[394988604,1764267045478,-4821.60298698,4.3e-05,2]
[394988605,1764267045489,-4420.42477335,4.3e-05,2]
[394988611,1764267046408,-2272.23679476,4.3e-05,2]
[394988614,1764267046419,-18174.32132879,4.3e-05,2]
[394988620,1764267318444,209.40437684,0.0001001,3]
[394988621,1764267318977,217.15233878,0.0001001,3]
[394988622,1764267319581,225.18697532,0.0001001,3]
[394988623,1764267320216,233.51889341,0.0001001,3]
[394988624,1764267320792,242.15909246,0.0001001,3]
[394988625,1764267322555,251.11897888,0.0001001,3]
[394988626,1764267322743,260.4103811,0.0001001,3]
[394988627,1764267323330,270.0455652,0.0001001,3]
[394988628,1764267323964,280.03725112,0.0001001,3]
[394988629,1764267324575,290.39862941,0.0001001,3]
[394988630,1764267325178,301.1433787,0.0001001,3]
[394988632,1764267556010,163.45992954,7.37e-05,7]
[394988633,1764267558192,653.83971814,7.861e-05,7]
[394988634,1764267559900,1471.13936582,8.351e-05,7]
[394988635,1764267561847,2615.35887257,8.842e-05,7]
[394988636,1764267563994,4086.49823838,9.333e-05,7]
[394988637,1764267565605,5884.55746327,9.824e-05,7]
[394988638,1764267567874,8001.52701068,0.00010314,7]
[394988640,1764267619105,209.40437684,0.0001001,3]
[394988641,1764267619708,217.15233878,0.0001001,3]
[394988642,1764267620585,225.18697532,0.0001001,3]
[394988643,1764267620958,233.51889341,0.0001001,3]
[394988644,1764267621570,242.15909246,0.0001001,3]
[394988645,1764267622157,251.11897888,0.0001001,3]
[394988646,1764267622747,260.4103811,0.0001001,3]
[394988647,1764267623358,270.0455652,0.0001001,3]
[394988648,1764267623956,280.03725112,0.0001001,3]
[394988649,1764267624553,290.39862941,0.0001001,3]
[394988650,1764267625147,301.1433787,0.0001001,3]
[394988652,1764267681158,371.91441581,0.00011814,7]
[394988653,1764267875366,413.61631909,0.00011814,7]
[394988654,1764267915155,209.40437684,0.0001001,3]
[394988655,1764267915787,217.15233878,0.0001001,3]
[394988656,1764267916410,225.18697532,0.0001001,3]
[394988657,1764267917032,233.51889341,0.0001001,3]
[394988658,1764267917771,242.15909246,0.0001001,3]
[394988659,1764267918388,251.11897888,0.0001001,3]
[394988660,1764267919021,260.4103811,0.0001001,3]
[394988661,1764267919638,270.0455652,0.0001001,3]
[394988662,1764267920309,280.03725112,0.0001001,3]
[394988663,1764267920915,290.39862941,0.0001001,3]
[394988664,1764267921556,301.1433787,0.0001001,3]
[394988665,1764267983259,1498.6215573,3.237e-05,2]
[394988666,1764267991013,1487.65766325,0.0001202,7]
[394988670,1764268161091,-150.0,4.061e-05,2]
[394988671,1764268161112,-300.0,4.099e-05,2]
[394988672,1764268161137,-1274.03399868,4.1e-05,2]
[394988673,1764268212344,6831.0,0.0001,3]
[394988674,1764268219116,209.40437684,0.0001001,3]
[394988675,1764268219722,217.15233878,0.0001001,3]
[394988676,1764268220356,225.18697532,0.0001001,3]
[394988677,1764268220912,233.51889341,0.0001001,3]
[394988678,1764268221555,242.15909246,0.0001001,3]
[394988679,1764268222148,251.11897888,0.0001001,3]
[394988680,1764268222758,260.4103811,0.0001001,3]
[394988681,1764268223356,270.0455652,0.0001001,3]
[394988682,1764268223971,280.03725112,0.0001001,3]
[394988683,1764268224623,290.39862941,0.0001001,3]
[394988684,1764268225232,301.1433787,0.0001001,3]
[394988706,1764268232551,-1109.00854542,4.059e-05,2]
[394988707,1764268232561,-1200.0,4.072e-05,2]
[394988708,1764268232571,-500.0,4.073e-05,2]
[394988710,1764268232580,-500.0,4.073e-05,2]
[394988712,1764268232589,-595.42892922,4.073e-05,2]
[394988714,1764268232598,-500.0,4.073e-05,2]
[394988715,1764268232608,-500.0,4.073e-05,2]
[394988717,1764268232618,-500.0,4.073e-05,2]
[394988719,1764268232627,-500.0,4.073e-05,2]
[394988721,1764268232636,-500.0,4.073e-05,2]
[394988723,1764268232645,-494.59567879,4.073e-05,2]
[394988725,1764268232654,-500.0,4.073e-05,2]
[394988726,1764268232664,-500.0,4.073e-05,2]
[394988728,1764268232673,-500.0,4.073e-05,2]
[394988730,1764268232682,-485.82132519,4.073e-05,2]
[394988731,1764268232692,-500.0,4.073e-05,2]
[394988733,1764268232701,-166.22185447,4.073e-05,2]
[394988735,1764268232710,-300.0,4.099e-05,2]
[394988738,1764268232720,-300.0,4.099e-05,2]
[394988740,1764268232729,-300.0,4.099e-05,2]
[394988742,1764268232738,-300.0,4.099e-05,2]
[394988745,1764268232747,-294561.45315455,4.1e-05,2]
[394988748,1764268232759,-4991.46497539,4.1e-05,2]
[394988751,1764268232773,-619.84912104,4.1e-05,2]
[394988761,1764268238507,-703.52979223,4.1e-05,2]
[394988762,1764268238519,-322.46275452,4.1e-05,2]
[394988763,1764268238530,-836.55525642,4.1e-05,2]
[394988764,1764268238564,-474.65,4.1e-05,2]
[394988765,1764268238617,-11935.92355807,4.1e-05,2]
[394988929,1764268290537,3347.22974231,0.00012097,7]
[394988935,1764268458918,-2800.0,0.00012415,7]
[394988936,1764268511433,2690.0,0.0001,3]
[394988937,1764268521563,209.40437684,0.0001001,3]
[394988938,1764268522175,217.15233878,0.0001001,3]
[394988939,1764268522776,225.18697532,0.0001001,3]
[394988940,1764268523487,233.51889341,0.0001001,3]
[394988941,1764268523977,242.15909246,0.0001001,3]
[394988942,1764268524655,251.11897888,0.0001001,3]
[394988943,1764268525194,260.4103811,0.0001001,3]
[394988944,1764268525821,270.0455652,0.0001001,3]
[394988945,1764268526415,280.03725112,0.0001001,3]
[394988946,1764268527042,290.39862941,0.0001001,3]
[394988947,1764268527646,301.1433787,0.0001001,3]
[394988948,1764268591397,3144.68002234,0.00012042,7]
[394988950,1764268765114,1652.81081108,0.00012047,7]
[394988951,1764268803526,2012.0,0.0001,3]
[394988952,1764268814882,209.40437684,0.0001001,3]
[394988953,1764268815483,217.15233878,0.0001001,3]
[394988954,1764268816118,225.18697532,0.0001001,3]
[394988955,1764268816747,233.51889341,0.0001001,3]
[394988956,1764268817364,242.15909246,0.0001001,3]
[394988957,1764268817962,251.11897888,0.0001001,3]
[394988958,1764268818821,260.4103811,0.0001001,3]
[394988959,1764268819163,270.0455652,0.0001001,3]
[394988960,1764268819756,280.03725112,0.0001001,3]
[394988961,1764268820358,290.39862941,0.0001001,3]
[394988962,1764268821111,301.1433787,0.0001001,3]
[394988977,1764269245874,300.0,3.959e-05,2]
[394988978,1764269253610,300.0,3.959e-05,2]
[394988979,1764269268670,265.43546982,3.959e-05,2]
[394988980,1764269289752,250.38864687,3.912e-05,2]
[394988981,1764269321965,-300.0,3.999e-05,2]
[394988982,1764269343657,-150.0,4e-05,2]
[394988983,1764269409833,3870.89564778,0.0001,3]
[394989029,1764269431619,-5136.42971169,4e-05,2]
[394989040,1764269437712,-13069.84203683,4e-05,2]
[394989041,1764269437792,-2755.89301092,4e-05,2]
[394989068,1764269441478,-41472.78760939,4e-05,2]
[394989069,1764269441493,-20000.0,4e-05,2]
[394989070,1764269441729,202.53256492,3.96e-05,2]
[394989093,1764269444027,-1166.36,4e-05,2]
[394989094,1764269444112,-35.18436732,4e-05,2]
[394989100,1764269456888,224.79429887,3.96e-05,2]
[394989101,1764269464736,1090.29664496,3.96e-05,2]
[394989103,1764270016745,-397.0,0.0002189,120]
[394989104,1764270016766,-397.0,0.000219,120]
[394989105,1764270016787,-206.0,0.0002191,120]
[394989106,1764270017036,-191.0,0.0002191,120]
[394989107,1764270017060,-134.0484407,0.00024,120]
[394989108,1764270017131,-165.9515593,0.00024,120]
[394989109,1764270017153,-200.0,0.00025,120]
[394989110,1764270017174,-31.0484407,0.00026,120]
[394989111,1764270017247,-468.9515593,0.00026,120]
[394989112,1764270017268,-500.0,0.00027397,120]
[394989113,1764270017324,-31.0484407,0.00029,120]
[394989114,1764270017440,-268.9515593,0.00029,120]
[394989115,1764270017460,-36.09917398,0.00029041,120]
[394989116,1764270017610,-156.61646662,0.00029041,120]
[394989117,1764270017629,-305.05073328,0.0003,120]
[394989118,1764270017752,-500.0,0.00030137,120]
[394989119,1764270017771,-4532.673409,0.00030137,120]
[394989120,1764270017827,-662.416591,0.00032876,120]
[394989121,1764270018306,-397.0,0.00032876,120]
[394989122,1764270018473,-1000.0,0.00032876,120]
[394989123,1764270019048,-397.0,0.00032876,120]
[394989124,1764270116081,22882.37649125,3.9e-05,2]
[394989125,1764270116114,89000.0,3.9e-05,2]
[394989126,1764270116147,43884.17588331,3.9e-05,2]
[394989127,1764270116178,100000.0,3.9e-05,2]
[394989128,1764270258368,38.3328001,0.00027397,120]
[394989129,1764270258389,461.6671999,0.00027397,120]
[394989130,1764270284505,278.0,0.0002191,120]
[394989131,1764270284801,278.0,0.000219,120]
[394989132,1764270285292,278.0,0.0002189,120]
[394989133,1764270285807,278.0,0.0002999,120]
[394989134,1764270286193,278.0,0.0002998,120]
[394989135,1764270286631,278.0,0.0002997,120]
[394989233,1764270637725,-36965.90347593,3.9e-05,2]
[394989283,1764270638373,-5016.13729012,3.9e-05,2]
[394989412,1764270644182,-396.205,3.9e-05,2]
[394989413,1764270644193,-447.54,3.9e-05,2]
[394989428,1764270645928,-2398.0,3.9e-05,2]
[394989429,1764270645983,-580.99999998,3.9e-05,2]
[394989430,1764270646090,-28201.90619258,3.9e-05,2]
[394989431,1764270646101,-11877.44020648,3.9e-05,2]
[394989432,1764270664640,818.0,3.861e-05,2]
[394989433,1764270680430,617.0,3.861e-05,2]
[394989434,1764270828764,2000.0,0.00030137,120]
[394989435,1764270862936,456.4980665,3.471e-05,2]
[394989436,1764270898474,403.0062091,0.00027397,120]
[394989437,1764270898493,96.9937909,0.00027397,120]
[394989438,1764270908974,1146.0,3.899e-05,2]
[394989439,1764271005001,95.7218497,0.0002199,120]
[394989440,1764271005022,54.7781503,0.0002199,120]
[394989441,1764271005469,150.5,0.0002198,120]
[394989442,1764271005915,150.5,0.0002197,120]
[394989443,1764271108811,91962.5019335,3.8e-05,2]
[394989444,1764271108843,25000.0,3.8e-05,2]
[394989445,1764271160516,8654.7750334,3.424e-05,2]
[394989449,1764271368809,300.0,3.724e-05,2]
[394989450,1764271391169,300.0,3.724e-05,2]
[394989451,1764271403874,-300.0,3.762e-05,2]
[394989452,1764271413567,537.52320295,3.762e-05,2]
[394989476,1764271724733,144.2218497,0.0002199,120]
[394989494,1764271831959,-15052.89364319,3.8e-05,2]
[394989517,1764271837921,-2171.90664597,3.8e-05,2]
[394989555,1764271846354,-23365.08422874,3.8e-05,2]
[394989556,1764271851109,621.0,0.00014,10]
[394989557,1764271862259,300.0,3.799e-05,2]
[394989558,1764271866665,825.0,3.762e-05,2]
[394989560,1764271922569,300.0,3.799e-05,2]
[394989561,1764271982616,300.0,3.799e-05,2]
[394989562,1764272042713,300.0,3.799e-05,2]
[394989563,1764272102158,300.0,3.799e-05,2]
[394989564,1764272109010,984.0,3.799e-05,2]
[394989567,1764272125603,146691.0,3.7e-05,2]
[394989568,1764272125639,3862.47679705,3.7e-05,2]
[394989569,1764272125670,99700.0,3.7e-05,2]
[394989570,1764272125699,241045.2249666,3.7e-05,2]
[394989572,1764272136403,-280.55791713,3.7e-05,2]
[394989573,1764272140860,-160.76272034,3.7e-05,2]
[394989574,1764272142196,-238.0120222,3.7e-05,2]
[394989575,1764272144461,-322.00793969,3.7e-05,2]
[394989580,1764272168466,-150.0,3.626e-05,2]
[394989581,1764272168499,-150.0,3.663e-05,2]
[394989582,1764272168528,-300.0,3.699e-05,2]
[394989583,1764272168616,-6040.35008176,3.7e-05,2]
[394989584,1764272168675,-10000.01,3.7e-05,2]
[394989585,1764272168802,-10000.01,3.7e-05,2]
[394989586,1764272168920,-10000.01,3.7e-05,2]
[394989587,1764272169029,-10000.01,3.7e-05,2]
[394989588,1764272169424,-10000.01,3.7e-05,2]
[394989589,1764272169518,-10000.01,3.7e-05,2]
[394989590,1764272169648,-10000.01,3.7e-05,2]
[394989591,1764272169835,-10000.01,3.7e-05,2]
[394989592,1764272171452,-10000.01,3.7e-05,2]
[394989594,1764272171832,150.0,3.59e-05,2]
[394989595,1764272174449,-10000.01,3.7e-05,2]
[394989596,1764272174671,-10000.01,3.7e-05,2]
[394989597,1764272174866,-10000.01,3.7e-05,2]
[394989598,1764272174945,-10000.01,3.7e-05,2]
[394989599,1764272175050,-10000.01,3.7e-05,2]
[394989600,1764272175261,-10000.01,3.7e-05,2]
[394989601,1764272175323,-10000.01,3.7e-05,2]
[394989602,1764272175458,-10000.01,3.7e-05,2]
[394989603,1764272195426,-336.57210369,3.626e-05,2]
[394989604,1764272195447,-282.7436026,3.663e-05,2]
[394989605,1764272211434,-164.564164,3.608e-05,2]
[394989606,1764272211455,-47.96369677,3.645e-05,2]
[394989610,1764272359252,1096.29282626,3.544e-05,2]
[394989618,1764272531330,196.11696208,3.622e-05,2]
[394989619,1764272538614,196.11696208,3.622e-05,2]
[394989620,1764272553744,167.86565393,3.622e-05,2]
[394989621,1764272561512,161.67150064,3.622e-05,2]
[394989622,1764272582091,784.06,1e-05,2]
[394989623,1764272582354,784.06,1e-05,2]
[394989624,1764272582653,784.06,1.1e-05,2]
[394989625,1764272582922,784.06,1.1e-05,2]
[394989626,1764272583196,784.06,1.1e-05,2]
[394989627,1764272583514,784.06,1.2e-05,2]
[394989628,1764272583842,784.06,1.2e-05,2]
[394989629,1764272584426,784.06,1.2e-05,2]
[394989630,1764272584546,784.06,1.3e-05,2]
[394989631,1764272584645,784.06,1.3e-05,2]
[394989632,1764272584909,784.06,1.3e-05,2]
[394989633,1764272585187,784.06,1.4e-05,2]
[394989634,1764272585465,784.06,1.4e-05,2]
[394989635,1764272585740,784.06,1.4e-05,2]
[394989636,1764272586083,784.06,1.5e-05,2]
[394989637,1764272586316,784.06,1.5e-05,2]
[394989638,1764272586626,784.06,1.5e-05,2]
[394989639,1764272586898,784.06,1.6e-05,2]
[394989640,1764272587821,784.06,1.6e-05,2]
[394989641,1764272588170,784.06,1.6e-05,2]
[394989642,1764272588613,784.06,1.7e-05,2]
[394989643,1764272588875,784.06,1.7e-05,2]
[394989644,1764272589150,784.06,1.7e-05,2]
[394989645,1764272589441,784.06,1.8e-05,2]
[394989646,1764272589736,784.06,1.8e-05,2]
[394989647,1764272590041,784.06,1.8e-05,2]
[394989648,1764272590516,784.06,1.8e-05,2]
[394989649,1764272590779,784.06,1.9e-05,2]
[394989650,1764272591328,784.06,1.9e-05,2]
[394989651,1764272591588,784.06,1.9e-05,2]
[394989652,1764272591906,784.06,2e-05,2]
[394989653,1764272592166,784.06,2e-05,2]
[394989654,1764272592432,784.06,2e-05,2]
[394989655,1764272592700,784.06,2.1e-05,2]
[394989656,1764272592983,784.06,2.1e-05,2]
[394989657,1764272593321,784.06,2.1e-05,2]
[394989658,1764272593650,784.06,2.2e-05,2]
[394989659,1764272593917,784.06,2.2e-05,2]
[394989660,1764272594185,784.06,2.2e-05,2]
[394989661,1764272594806,784.06,2.3e-05,2]
[394989662,1764272594989,784.06,2.3e-05,2]
[394989663,1764272595093,784.06,2.3e-05,2]
[394989664,1764272595252,784.06,2.4e-05,2]
[394989665,1764272595608,784.06,2.4e-05,2]
[394989666,1764272595883,784.06,2.4e-05,2]
[394989667,1764272596166,784.06,2.5e-05,2]
[394989668,1764272596232,-196.11696208,3.658e-05,2]
[394989669,1764272596405,66.85272057,2.5e-05,2]
[394989670,1764272596433,717.20727943,2.5e-05,2]
[394989671,1764272596873,784.06,2.5e-05,2]
[394989672,1764272597085,784.06,2.6e-05,2]
[394989673,1764272597390,784.06,2.6e-05,2]
[394989674,1764272621362,-832.0,3.672e-05,2]
[394989675,1764272621408,-300.0,3.672e-05,2]
[394989676,1764272631477,-304.39419643,3.673e-05,2]
[394989677,1764272633482,-195.60580357,3.673e-05,2]
[394989678,1764272633504,-195.00796412,3.673e-05,2]
[394989679,1764272637493,-228.56947205,3.673e-05,2]
[394989680,1764272639580,-76.42256383,3.673e-05,2]
[394989681,1764272639600,-150.61738032,3.673e-05,2]
[394989682,1764272639626,-10.39287848,3.673e-05,2]
[394989683,1764272642067,-228.66283741,3.673e-05,2]
[394989684,1764272642571,300.0,3.672e-05,2]
[394989685,1764272642650,403.98,1e-05,2]
[394989686,1764272643568,403.98,1e-05,2]
[394989687,1764272644449,-268.01715837,3.673e-05,2]
[394989688,1764272644471,-192.70127462,3.673e-05,2]
[394989689,1764272644544,403.98,1.1e-05,2]
[394989690,1764272644856,403.98,1.1e-05,2]
[394989691,1764272645143,403.98,1.2e-05,2]
[394989692,1764272645451,403.98,1.2e-05,2]
[394989693,1764272645771,403.98,1.2e-05,2]
[394989694,1764272646086,403.98,1.3e-05,2]